bitfinex/quotes_BTCUSD_20241010
["timestamp","ask_amount","ask_price","bid_price","bid_amount"]
[1728551435297,0.5804412,60847.0,60846.0,0.13018336]
[1728551436431,0.41963459,60847.0,60846.0,0.13018336]
[1728551436678,0.49304248,60847.0,60846.0,0.13018336]
[1728551437527,0.51751178,60847.0,60846.0,0.13018336]
[1728551438179,0.51751286,60847.0,60846.0,0.13018336]
[1728551438606,0.41963567,60847.0,60846.0,0.13018336]
[1728551439013,0.45290527,60847.0,60846.0,0.13018336]
[1728551439427,0.57525176,60847.0,60846.0,0.13018336]
[1728551440508,0.45290527,60847.0,60846.0,0.13018336]
[1728551440720,0.45454127,60847.0,60846.0,0.13018336]
[1728551446245,0.45454127,60847.0,60846.0,0.11230972]
[1728551452884,0.45454127,60847.0,60846.0,0.11230972]
[1728551457750,0.4391196,60847.0,60846.0,0.11230972]
[1728551457957,0.45455138,60847.0,60846.0,0.11230972]
[1728551460702,0.45455138,60847.0,60846.0,0.11230972]
[1728551460908,0.45455138,60847.0,60846.0,0.37385872]
[1728551460909,0.09609814,60847.0,60846.0,0.37385872]
[1728551461109,0.09609814,60847.0,60846.0,0.45505872]
[1728551461330,0.04506778,60847.0,60846.0,0.47292957]
[1728551461849,0.03106778,60847.0,60846.0,0.47292957]
[1728551462253,0.01706778,60847.0,60846.0,0.47192957]
[1728551462618,0.03106778,60847.0,60846.0,0.47292957]
[1728551463028,0.03106778,60847.0,60846.0,0.30858057]
[1728551463241,0.03106778,60847.0,60846.0,0.47292957]
[1728551463694,0.015636,60847.0,60846.0,0.47292957]
[1728551463904,0.03104757,60847.0,60846.0,0.47292957]
[1728551464108,0.01704757,60847.0,60846.0,0.47192957]
[1728551464325,0.01704757,60847.0,60846.0,0.47292957]
[1728551464525,0.01704757,60847.0,60846.0,0.47492957]
[1728551466333,0.01704757,60847.0,60846.0,0.31058057]
[1728551467028,0.001636,60847.0,60846.0,0.31058057]
[1728551467256,0.01704006,60847.0,60846.0,0.31058057]
[1728551467493,0.01704006,60847.0,60846.0,0.30758057]
[1728551467732,0.01704006,60847.0,60846.0,0.23138057]
[1728551467939,0.18238606,60847.0,60846.0,0.13118057]
[1728551468571,0.18238606,60847.0,60846.0,0.12918057]
[1728551468792,0.01704006,60847.0,60846.0,0.12918057]
[1728551469206,0.19538606,60847.0,60846.0,0.12918057]
[1728551469409,0.19538606,60847.0,60846.0,0.13018057]
[1728551469410,0.20938606,60847.0,60846.0,0.13018057]
[1728551471355,0.19538606,60847.0,60846.0,0.12918057]
[1728551471581,0.20938606,60847.0,60846.0,0.13018057]
[1728551471800,0.04504006,60847.0,60846.0,0.13018057]
[1728551472450,0.04504006,60847.0,60846.0,0.29452957]
[1728551472678,0.04504006,60847.0,60846.0,0.13018057]
[1728551473310,0.20938606,60847.0,60846.0,0.13018057]
[1728551474003,0.04504006,60847.0,60846.0,0.13018057]
[1728551474211,0.04504006,60847.0,60846.0,0.29452957]
[1728551474412,0.04504006,60847.0,60846.0,0.13018057]
[1728551475243,0.04504006,60847.0,60846.0,0.29452957]
[1728551476464,0.04504006,60847.0,60846.0,0.13018057]
[1728551477094,0.04504006,60847.0,60846.0,0.29452957]
[1728551477302,0.04504006,60847.0,60846.0,0.29952957]
[1728551478153,0.04504006,60847.0,60846.0,0.13518057]
[1728551478377,0.04504006,60847.0,60846.0,0.13018057]
[1728551478378,0.20938606,60847.0,60846.0,0.13018057]
[1728551479229,0.30849206,60847.0,60846.0,0.13018057]
[1728551479457,0.4693297,60847.0,60846.0,0.11230972]
[1728551479903,0.59383857,60847.0,60846.0,0.11230972]
[1728551480368,0.57843451,60847.0,60846.0,0.11230972]
[1728551480812,0.59383677,60847.0,60846.0,0.11230972]
[1728551481227,0.68553677,60847.0,60846.0,0.11230972]
[1728551481433,0.61205704,60847.0,60846.0,0.11230972]
[1728551481869,0.81382326,60847.0,60846.0,0.11230972]
[1728551482077,0.69135704,60847.0,60846.0,0.11230972]
[1728551484058,0.67595478,60847.0,60846.0,0.11230972]
[1728551485136,0.69135512,60847.0,60846.0,0.11230972]
[1728551485999,0.69335512,60847.0,60846.0,0.11230972]
[1728551486409,0.69135512,60847.0,60846.0,0.11230972]
[1728551486609,0.69335512,60847.0,60846.0,0.11230972]
[1728551486822,0.67935512,60847.0,60846.0,0.11130972]
[1728551487024,0.66335512,60847.0,60846.0,0.11130972]
[1728551487225,0.66535512,60847.0,60846.0,0.11130972]
[1728551487425,0.8017984,60847.0,60846.0,0.11130972]
[1728551487629,0.67735512,60847.0,60846.0,0.11130972]
[1728551488459,0.58565512,60847.0,60846.0,0.11130972]
[1728551488712,0.68348193,60847.0,60846.0,0.11130972]
[1728551488969,0.51907593,60847.0,60846.0,0.11130972]
[1728551489434,0.48965849,60847.0,60846.0,0.11130972]
[1728551489641,0.50505289,60847.0,60846.0,0.12917548]
[1728551489851,0.39324318,60847.0,60846.0,0.12917548]
[1728551490059,0.40724318,60847.0,60846.0,0.12917548]
[1728551490274,0.42124318,60847.0,60846.0,0.12917548]
[1728551490488,0.40724318,60847.0,60846.0,0.12917548]
[1728551490705,0.39324318,60847.0,60846.0,0.12917548]
[1728551490913,0.40724318,60847.0,60846.0,0.12917548]
[1728551491124,0.42124318,60847.0,60846.0,0.12917548]
[1728551491332,0.44325396,60847.0,60846.0,0.12917548]
[1728551492236,0.44325396,60847.0,60846.0,0.11130972]
[1728551492855,0.44325232,60847.0,60846.0,0.11130972]
[1728551494136,0.42124154,60847.0,60846.0,0.11130972]
[1728551494400,0.25826562,60847.0,60846.0,0.11130972]
[1728551494620,0.20937476,60847.0,60846.0,0.11130972]
[1728551494823,0.20937476,60847.0,60846.0,0.12917548]
[1728551496311,0.20937523,60847.0,60846.0,0.12917548]
[1728551498449,0.22769561,60847.0,60846.0,0.12917548]
[1728551500727,0.22769561,60847.0,60846.0,0.29352448]
[1728551500728,0.06334961,60847.0,60846.0,0.29352448]
[1728551500930,0.06334961,60847.0,60846.0,0.39122448]
[1728551501161,0.06334961,60847.0,60846.0,0.22687548]
[1728551501363,0.13858297,60847.0,60846.0,0.22687548]
[1728551502302,0.13858297,60847.0,60846.0,0.24650363]
[1728551502505,0.12458297,60847.0,60846.0,0.24650363]
[1728551502709,0.21369561,60847.0,60846.0,0.24650363]
[1728551502940,0.19969561,60847.0,60846.0,0.22687548]
[1728551503157,0.21369561,60847.0,60846.0,0.22687548]
[1728551503366,0.22669561,60847.0,60846.0,0.22687548]
[1728551503571,0.21369561,60847.0,60846.0,0.22687548]
[1728551503801,0.03534961,60847.0,60846.0,0.22687548]
[1728551504006,0.20269561,60847.0,60846.0,0.22687548]
[1728551504213,0.20469561,60847.0,60846.0,0.22687548]
[1728551504418,0.04034961,60847.0,60846.0,0.22687548]
[1728551504625,0.04034961,60847.0,60846.0,0.39122448]
[1728551505070,0.04034961,60847.0,60846.0,0.39622448]
[1728551506122,0.04034961,60847.0,60846.0,0.41922448]
[1728551506334,0.04034961,60847.0,60846.0,0.49582448]
[1728551506996,0.04034961,60847.0,60846.0,0.65666212]
[1728551507652,0.04034961,60847.0,60846.0,0.75666212]
[1728551507862,0.03534961,60847.0,60846.0,0.75666212]
[1728551508274,0.03534961,60847.0,60846.0,0.75766212]
[1728551509842,0.03534961,60847.0,60846.0,0.75666212]
[1728551510069,0.01995638,60847.0,60846.0,0.75666212]
[1728551510284,0.03633304,60847.0,60846.0,0.75766212]
[1728551510777,0.03533304,60847.0,60846.0,0.75666212]
[1728551511035,0.03533304,60847.0,60846.0,0.75766212]
[1728551511280,0.03533304,60847.0,60846.0,0.76366212]
[1728551511525,0.03533304,60847.0,60846.0,0.76266212]
[1728551513787,0.03533304,60847.0,60846.0,0.76366212]
[1728551514217,0.03533304,60847.0,60846.0,0.75866212]
[1728551514434,0.03533304,60847.0,60846.0,0.76366212]
[1728551520277,0.01995638,60847.0,60846.0,0.76366212]
[1728551520781,0.03532684,60847.0,60846.0,0.75866212]
[1728551522007,0.03532684,60847.0,60846.0,0.59782448]
[1728551524921,0.01700646,60847.0,60846.0,0.59782448]
[1728551525189,0.01700646,60847.0,60846.0,0.72051446]
[1728551525701,0.01700646,60847.0,60846.0,0.8813521]
[1728551525961,0.001636,60847.0,60846.0,0.8833521]
[1728551526211,0.01702033,60847.0,60846.0,0.8813521]
[1728551526943,0.001636,60847.0,60846.0,0.8863521]
[1728551527188,0.01702188,60847.0,60846.0,0.8863521]
[1728551529092,0.01702774,60847.0,60846.0,0.8863521]
[1728551536639,0.001636,60847.0,60846.0,0.8863521]
[1728551541830,0.001636,60847.0,60846.0,0.52122448]
[1728551542046,0.001636,60847.0,60846.0,0.42352448]
[1728551545048,0.001636,60847.0,60846.0,0.7120521]
[1728551545279,0.001636,60847.0,60846.0,0.8857521]
[1728551550176,0.001636,60847.0,60846.0,0.8847521]
[1728551550849,0.001636,60847.0,60846.0,0.8857521]
[1728551551057,0.001636,60847.0,60846.0,0.8837521]
[1728551551271,0.001636,60847.0,60846.0,0.8887521]
[1728551551928,0.001636,60847.0,60846.0,0.8927521]
[1728551552139,0.001636,60847.0,60846.0,0.8151521]
[1728551552575,0.001636,60847.0,60846.0,0.68746212]
[1728551553053,0.001636,60847.0,60846.0,0.69246212]
[1728551553814,0.001636,60847.0,60846.0,0.74174738]
[1728551555540,0.001636,60847.0,60846.0,0.69246212]
[1728551556454,0.001636,60847.0,60846.0,0.74174738]
[1728551557554,0.001636,60847.0,60846.0,0.87986399]
[1728551558619,0.001636,60847.0,60846.0,0.83057873]
[1728551559246,0.001636,60847.0,60846.0,0.87986399]
[1728551559455,0.001636,60847.0,60846.0,0.83057873]
[1728551560304,0.001636,60847.0,60846.0,0.87986399]
[1728551560534,0.001636,60847.0,60846.0,0.83057873]
[1728551561215,0.001636,60847.0,60846.0,0.87986399]
[1728551561433,0.001636,60847.0,60846.0,0.83057873]
[1728551562296,0.001636,60847.0,60846.0,0.87958823]
[1728551562508,0.001636,60847.0,60846.0,0.83030297]
[1728551563203,0.001636,60847.0,60846.0,0.87958823]
[1728551566656,0.001636,60847.0,60846.0,0.66086577]
[1728551566877,0.001636,60847.0,60846.0,0.61151299]
[1728551568838,0.001636,60847.0,60846.0,0.40724872]
[1728551569073,0.244382,60847.0,60846.0,0.14289972]
[1728551569317,0.3858628,60847.0,60846.0,0.13789972]
[1728551569553,0.2215168,60847.0,60846.0,0.14289972]
[1728551569797,0.2215168,60847.0,60846.0,0.11103396]
[1728551569798,0.35490215,60847.0,60846.0,0.11103396]
[1728551570051,0.35490215,60847.0,60846.0,0.13159318]
[1728551570306,0.35490215,60847.0,60846.0,0.13559318]
[1728551570537,0.35490215,60847.0,60846.0,0.11503396]
[1728551570794,0.36890215,60847.0,60846.0,0.11103396]
[1728551571057,0.52970876,60847.0,60846.0,0.13359318]
[1728551571313,0.35490215,60847.0,60846.0,0.13359318]
[1728551571547,0.36890215,60847.0,60846.0,0.13359318]
[1728551572454,0.38290215,60847.0,60846.0,0.13359318]
[1728551573088,0.38290215,60847.0,60846.0,0.12859318]
[1728551573303,0.51159617,60847.0,60846.0,0.12859318]
[1728551573744,0.38290215,60847.0,60846.0,0.12859318]
[1728551574247,0.38367094,60847.0,60846.0,0.13359318]
[1728551574506,0.39906717,60847.0,60846.0,0.13359318]
[1728551576927,0.38367094,60847.0,60846.0,0.13359318]
[1728551578038,0.38367094,60847.0,60846.0,0.12859318]
[1728551578261,0.62621282,60847.0,60846.0,0.12859318]
[1728551578755,0.77189714,60847.0,60846.0,0.11103396]
[1728551578978,0.93273478,60847.0,60846.0,0.11103396]
[1728551579865,0.9836168,60847.0,60846.0,0.11103396]
[1728551580511,1.03246293,60847.0,60846.0,0.11103396]
[1728551580955,1.04784467,60847.0,60846.0,0.11103396]
[1728551581413,0.99899854,60847.0,60846.0,0.11103396]
[1728551584354,0.94811652,60847.0,60846.0,0.11103396]
[1728551585923,0.94810466,60847.0,60846.0,0.11103396]
[1728551586186,0.70556278,60847.0,60846.0,0.11103396]
[1728551587764,0.93622823,60847.0,60846.0,0.11103396]
[1728551589050,0.92085835,60847.0,60846.0,0.11103396]
[1728551589261,0.93622741,60847.0,60846.0,0.11103396]
[1728551590551,0.78874079,60847.0,60846.0,0.11103396]
[1728551591891,0.78392103,60847.0,60846.0,0.11103396]
[1728551592136,0.61540709,60847.0,60846.0,0.11103396]
[1728551592389,0.61540709,60847.0,60846.0,0.39807294]
[1728551592390,0.04336906,60847.0,60846.0,0.39807294]
[1728551592836,0.04336906,60847.0,60846.0,0.41577649]
[1728551592837,0.028,60847.0,60846.0,0.41577649]
[1728551593269,0.028,60847.0,60846.0,0.12873751]
[1728551593505,0.029634,60847.0,60846.0,0.12873751]
[1728551593970,0.04501084,60847.0,60846.0,0.29308651]
[1728551595103,0.03101084,60847.0,60846.0,0.29808651]
[1728551595331,0.01701084,60847.0,60846.0,0.42077649]
[1728551595580,0.01701084,60847.0,60846.0,0.62677649]
[1728551595815,0.03001084,60847.0,60846.0,0.74946647]
[1728551596047,0.03001084,60847.0,60846.0,0.50408651]
[1728551596048,0.01433239,60847.0,60846.0,0.50408651]
[1728551596304,0.01433239,60847.0,60846.0,0.32108651]
[1728551596529,0.01433239,60847.0,60846.0,0.13373751]
[1728551596746,0.17867839,60847.0,60846.0,0.12873751]
[1728551597181,0.19067839,60847.0,60846.0,0.12973751]
[1728551597635,0.01333239,60847.0,60846.0,0.13473751]
[1728551598703,0.19067839,60847.0,60846.0,0.13573751]
[1728551598916,0.19067839,60847.0,60846.0,0.13073751]
[1728551599126,0.19067839,60847.0,60846.0,0.13573751]
[1728551599354,0.02633239,60847.0,60846.0,0.13573751]
[1728551601124,0.19067839,60847.0,60846.0,0.13573751]
[1728551601335,0.19067839,60847.0,60846.0,0.13073751]
[1728551602010,0.19067839,60847.0,60846.0,0.13573751]
[1728551602227,0.19067839,60847.0,60846.0,0.13073751]
[1728551602449,0.02633239,60847.0,60846.0,0.13573751]
[1728551603100,0.19067839,60847.0,60846.0,0.13073751]
[1728551604252,0.02633239,60847.0,60846.0,0.13073751]
[1728551604906,0.02532918,60847.0,60846.0,0.13073751]
[1728551605156,0.02520354,60847.0,60846.0,0.13073751]
[1728551605393,0.02520354,60847.0,60846.0,0.13573751]
[1728551605652,0.02520354,60847.0,60846.0,0.30008651]
[1728551607313,0.02520354,60847.0,60846.0,0.13573751]
[1728551607792,0.02520354,60847.0,60846.0,0.30008651]
[1728551608729,0.02520354,60847.0,60846.0,0.13573751]
[1728551609398,0.02520354,60847.0,60846.0,0.31945333]
[1728551612777,0.02016436,60847.0,60846.0,0.31945333]
[1728551613202,0.02016436,60847.0,60846.0,0.48995333]
[1728551613420,0.02016436,60847.0,60846.0,0.69994778]
[1728551614278,0.02016436,60847.0,60846.0,0.69894778]
[1728551614279,0.013,60847.0,60846.0,0.69894778]
[1728551614539,0.013,60847.0,60846.0,0.79894778]
[1728551614759,0.013,60847.0,60846.0,0.79994778]
[1728551614987,0.03,60848.0,60847.0,0.192346]
[1728551615430,0.03,60848.0,60847.0,0.21004348]
[1728551616767,0.03,60848.0,60847.0,0.21304348]
[1728551616982,0.031634,60848.0,60847.0,0.21304348]
[1728551617863,0.031634,60848.0,60847.0,0.21704348]
[1728551619172,0.031634,60848.0,60847.0,0.05269748]
[1728551619415,0.031634,60848.0,60847.0,0.02469748]
[1728551619686,0.195977,60848.0,60847.0,0.02469748]
[1728551620174,0.031634,60848.0,60847.0,0.02169748]
[1728551620420,0.039634,60848.0,60847.0,0.02769748]
[1728551620667,0.203977,60848.0,60847.0,0.02269748]
[1728551620943,0.039634,60848.0,60847.0,0.02269748]
[1728551621175,0.203977,60848.0,60847.0,0.02769748]
[1728551621409,0.203977,60848.0,60847.0,0.18804348]
[1728551621410,0.039634,60848.0,60847.0,0.18804348]
[1728551621663,0.039634,60848.0,60847.0,0.21204348]
[1728551622147,0.031634,60848.0,60847.0,0.21104348]
[1728551622393,0.031634,60848.0,60847.0,0.20504348]
[1728551622636,0.045634,60848.0,60847.0,0.20604348]
[1728551622867,0.059634,60848.0,60847.0,0.04269748]
[1728551623109,0.045634,60848.0,60847.0,0.04669748]
[1728551623348,0.045634,60848.0,60847.0,0.21104348]
[1728551623655,0.059634,60848.0,60847.0,0.21204348]
[1728551625338,0.045634,60848.0,60847.0,0.21104348]
[1728551625596,0.031634,60848.0,60847.0,0.21004348]
[1728551625845,0.059634,60848.0,60847.0,0.21204348]
[1728551627474,0.045634,60848.0,60847.0,0.21104348]
[1728551627722,0.045634,60848.0,60847.0,0.01869748]
[1728551627963,0.045634,60848.0,60847.0,0.01969748]
[1728551627964,0.317677,60848.0,60847.0,0.01969748]
[1728551628212,0.3685997,60848.0,60847.0,0.01969748]
[1728551628448,0.3685997,60848.0,60847.0,0.002]
[1728551629659,0.3685997,60848.0,60847.0,0.002817]
[1728551630881,0.2748997,60848.0,60847.0,0.002817]
[1728551631173,0.059634,60848.0,60847.0,0.002817]
[1728551631414,0.223977,60848.0,60847.0,0.02048008]
[1728551633852,0.223977,60848.0,60847.0,0.002817]
[1728551634374,0.223977,60848.0,60847.0,0.02050515]
[1728551635136,0.223977,60848.0,60847.0,0.002817]
[1728551635683,1.1173486,60848.0,60847.0,0.002817]
[1728551635947,0.92183199,60848.0,60847.0,0.002817]
[1728551636239,0.61563091,60848.0,60847.0,0.002817]
[1728551636710,0.91079424,60848.0,60847.0,0.001817]
[1728551637211,0.92479424,60848.0,60847.0,0.002817]
[1728551637450,0.91079424,60848.0,60847.0,0.001817]
[1728551638619,0.92479424,60848.0,60847.0,0.001817]
[1728551639111,0.91079424,60848.0,60847.0,0.001817]
[1728551639365,0.89679424,60848.0,60847.0,0.000817]
[1728551639608,1.16817373,60848.0,60847.0,0.000817]
[1728551639866,1.18217373,60848.0,60847.0,0.000817]
[1728551640101,1.34298034,60848.0,60847.0,0.000817]
[1728551640613,1.32898034,60848.0,60847.0,0.000817]
[1728551641088,1.34298034,60848.0,60847.0,0.000817]
[1728551641360,1.16817373,60848.0,60847.0,0.000817]
[1728551641621,1.04602495,60848.0,60847.0,0.000817]
[1728551641875,1.06002495,60848.0,60847.0,0.000817]
[1728551642368,1.04602495,60848.0,60847.0,0.000817]
[1728551642697,1.90083742,60848.0,60847.0,0.000817]
[1728551642869,1.50782601,60848.0,60847.0,0.000817]
[1728551643134,1.50982601,60848.0,60847.0,0.000817]
[1728551643376,1.50982601,60848.0,60846.0,0.11103396]
[1728551643377,0.437146,60847.0,60846.0,0.11103396]
[1728551643653,0.437146,60847.0,60835.0,0.24725088]
[1728551643654,0.26437,60838.0,60835.0,0.24725088]
[1728551643900,0.45136745,60837.0,60835.0,0.24725088]
[1728551644146,0.66512136,60837.0,60835.0,0.000818]
[1728551644352,0.82392797,60837.0,60835.0,0.000818]
[1728551644570,0.9459142,60837.0,60835.0,0.000818]
[1728551645247,0.9479142,60837.0,60835.0,0.000818]
[1728551645487,0.82392797,60837.0,60835.0,0.000818]
[1728551645701,1.06337937,60837.0,60835.0,0.000818]
[1728551646213,1.0798826,60837.0,60835.0,0.000818]
[1728551646478,1.0778826,60837.0,60835.0,0.000818]
[1728551646694,0.59553638,60837.0,60835.0,0.000818]
[1728551647136,0.60953638,60837.0,60835.0,0.000818]
[1728551648048,0.59553638,60837.0,60835.0,0.000818]
[1728551648271,0.58153638,60837.0,60835.0,0.000818]
[1728551648487,0.34158175,60837.0,60835.0,0.000818]
[1728551648987,0.57601947,60837.0,60835.0,0.000818]
[1728551649170,0.71350065,60837.0,60835.0,0.000818]
[1728551649856,0.69950065,60837.0,60835.0,0.000818]
[1728551650067,0.71350065,60837.0,60835.0,0.000818]
[1728551650744,0.69950065,60837.0,60835.0,0.000818]
[1728551651580,0.72750065,60837.0,60835.0,0.000818]
[1728551652228,0.71350065,60837.0,60835.0,0.000818]
[1728551652655,0.72750065,60837.0,60835.0,0.000818]
[1728551653137,0.71350065,60837.0,60835.0,0.000818]
[1728551653354,0.69950065,60837.0,60835.0,0.000818]
[1728551653568,0.71350065,60837.0,60835.0,0.000818]
[1728551653791,0.72750065,60837.0,60835.0,0.000818]
[1728551654008,0.71350065,60837.0,60835.0,0.000818]
[1728551654440,0.72750065,60837.0,60835.0,0.000818]
[1728551654861,0.71350065,60837.0,60835.0,0.000818]
[1728551655297,0.72750065,60837.0,60835.0,0.000818]
[1728551655520,0.59001947,60837.0,60835.0,0.000818]
[1728551655753,0.59001947,60837.0,60836.0,0.0150928]
[1728551655976,0.60401947,60837.0,60836.0,0.0150928]
[1728551656621,0.44318183,60837.0,60836.0,0.0150928]
[1728551656843,0.20874411,60837.0,60836.0,0.0150928]
[1728551657072,0.30306597,60837.0,60836.0,0.0150928]
[1728551657500,0.31706597,60837.0,60836.0,0.0150928]
[1728551658993,0.20874411,60837.0,60836.0,0.0150928]
[1728551663597,0.18074411,60837.0,60836.0,0.0150928]
[1728551664024,0.20874411,60837.0,60836.0,0.0150928]
[1728551664238,0.028,60837.0,60836.0,0.0150928]
[1728551664677,0.028,60837.0,60836.0,0.03020633]
[1728551664898,0.192373,60837.0,60836.0,0.03020633]
[1728551665113,0.28000446,60837.0,60836.0,0.03020633]
[1728551665565,0.028,60837.0,60836.0,0.03020633]
[1728551667526,0.192373,60837.0,60836.0,0.03020633]
[1728551667709,0.028,60837.0,60836.0,0.03020633]
[1728551667949,0.028,60837.0,60836.0,0.19458233]
[1728551668662,0.028,60837.0,60836.0,0.19958233]
[1728551669512,0.028,60837.0,60836.0,0.03520633]
[1728551669727,0.028,60837.0,60836.0,0.24140877]
[1728551669940,0.028,60837.0,60836.0,0.33380877]
[1728551670813,0.03,60838.0,60836.0,0.16943277]
[1728551671030,0.03,60838.0,60837.0,0.192373]
[1728551671462,0.03,60838.0,60837.0,0.20740253]
[1728551673434,0.044,60838.0,60837.0,0.20740253]
[1728551673623,0.058,60838.0,60837.0,0.20740253]
[1728551674299,0.044,60838.0,60837.0,0.20740253]
[1728551674773,0.058,60838.0,60837.0,0.39439698]
[1728551676349,0.058,60838.0,60837.0,0.20740253]
[1728551679966,0.058,60838.0,60837.0,0.28290253]
[1728551680664,0.059634,60838.0,60837.0,0.28290253]
[1728551680940,0.059634,60838.0,60837.0,0.37830253]
[1728551685415,0.031634,60838.0,60837.0,0.37830253]
[1728551685638,0.034634,60838.0,60837.0,0.37830253]
[1728551687017,0.036634,60838.0,60837.0,0.37830253]
[1728551690381,0.036634,60838.0,60837.0,0.28290253]
[1728551691920,0.036634,60838.0,60837.0,0.04302953]
[1728551693689,0.036634,60838.0,60837.0,0.04384653]
[1728551695009,0.036634,60838.0,60837.0,0.20821953]
[1728551695477,0.036634,60838.0,60837.0,0.04384653]
[1728551695703,0.036634,60838.0,60837.0,0.20821953]
[1728551696937,0.036634,60838.0,60837.0,0.04384653]
[1728551697189,0.036634,60838.0,60837.0,0.20821953]
[1728551698358,0.033634,60838.0,60837.0,0.20821953]
[1728551698607,0.032634,60838.0,60837.0,0.04384653]
[1728551699146,0.032634,60838.0,60837.0,0.04484653]
[1728551699382,0.031634,60838.0,60837.0,0.04484653]
[1728551699823,0.034634,60838.0,60837.0,0.04484653]
[1728551700128,0.031634,60838.0,60837.0,0.20921953]
[1728551700349,0.034634,60838.0,60837.0,0.20921953]
[1728551700583,0.034634,60838.0,60837.0,0.20821953]
[1728551700805,0.034634,60838.0,60837.0,0.04384653]
[1728551701043,0.2373391,60838.0,60837.0,0.01584653]
[1728551701507,0.2343391,60838.0,60837.0,0.000817]
[1728551701981,0.2373391,60838.0,60837.0,0.000817]
[1728551702209,0.39817674,60838.0,60837.0,0.000817]
[1728551702453,0.48887674,60838.0,60837.0,0.000817]
[1728551702681,0.58863233,60838.0,60837.0,0.000817]
[1728551702917,0.53979965,60838.0,60837.0,0.000817]
[1728551703383,0.61304867,60838.0,60837.0,0.000817]
[1728551703885,0.61104867,60838.0,60837.0,0.000817]
[1728551704350,0.53779965,60838.0,60837.0,0.000817]
[1728551704576,0.62504867,60838.0,60837.0,0.000817]
[1728551705268,0.54879965,60838.0,60837.0,0.000817]
[1728551705512,0.53479965,60838.0,60837.0,0.000817]
[1728551705740,0.54879965,60838.0,60837.0,0.000817]
[1728551705981,0.53479965,60838.0,60837.0,0.000817]
[1728551706233,0.54879965,60838.0,60837.0,0.000817]
[1728551706531,0.63604867,60838.0,60837.0,0.000817]
[1728551706779,0.62204867,60838.0,60837.0,0.000817]
[1728551707025,0.62206906,60838.0,60837.0,0.000817]
[1728551707265,0.72979965,60838.0,60837.0,0.000817]
[1728551707507,0.72979965,60838.0,60830.0,0.00139]
[1728551707508,0.164389,60831.0,60830.0,0.00139]
[1728551707748,0.68522619,60831.0,60830.0,0.01149057]
[1728551708004,0.37614955,60831.0,60830.0,0.00139]
[1728551708242,0.72186498,60831.0,60830.0,0.00139]
[1728551708482,0.6730277,60831.0,60830.0,0.00139]
[1728551709230,0.32522664,60831.0,60830.0,0.00139]
[1728551709497,0.164389,60831.0,60830.0,0.00139]
[1728551709975,0.178389,60831.0,60830.0,0.01159023]
[1728551710236,0.164389,60831.0,60830.0,0.01159023]
[1728551710478,0.34096721,60831.0,60830.0,0.01159023]
[1728551710711,0.19455594,60831.0,60830.0,0.00139]
[1728551711166,0.19455594,60831.0,60830.0,0.01159023]
[1728551711434,0.20855594,60831.0,60830.0,0.01159023]
[1728551711900,0.19455594,60831.0,60830.0,0.01159023]
[1728551712136,0.03016694,60831.0,60830.0,0.01159023]
[1728551712372,0.014,60831.0,60830.0,0.01159023]
[1728551712603,0.028,60831.0,60830.0,0.01159023]
[1728551712844,0.178389,60831.0,60830.0,0.01159023]
[1728551713056,0.192389,60831.0,60830.0,0.01159023]
[1728551713276,0.28207924,60831.0,60830.0,0.01159023]
[1728551713505,0.29607924,60831.0,60830.0,0.01159023]
[1728551713747,0.28207924,60831.0,60830.0,0.00139]
[1728551714035,0.28207924,60831.0,60830.0,0.01159023]
[1728551714257,0.28207924,60831.0,60830.0,0.00139]
[1728551714487,0.28207924,60831.0,60830.0,0.01159023]
[1728551714697,0.28207924,60831.0,60830.0,0.00139]
[1728551714907,0.28207924,60831.0,60830.0,0.01159023]
[1728551715117,0.28207924,60831.0,60830.0,0.00139]
[1728551715536,0.28207924,60831.0,60830.0,0.01159023]
[1728551715968,0.29607924,60831.0,60830.0,0.01159023]
[1728551717608,0.29607924,60831.0,60830.0,0.01240723]
[1728551719501,0.26807924,60831.0,60830.0,0.01240723]
[1728551719742,0.13169024,60831.0,60830.0,0.01240723]
[1728551720463,0.11769024,60831.0,60830.0,0.01240723]
[1728551720709,0.028,60831.0,60830.0,0.01240723]
[1728551720960,0.028,60831.0,60830.0,0.20479923]
[1728551721196,0.028,60831.0,60830.0,0.28499923]
[1728551721794,0.028,60831.0,60830.0,0.30435008]
[1728551724399,0.028,60831.0,60830.0,0.40435008]
[1728551726569,0.028,60831.0,60830.0,0.66718772]
[1728551727533,0.014,60831.0,60830.0,0.66718772]
[1728551727767,0.022,60831.0,60830.0,0.66718772]
[1728551728498,0.008,60831.0,60830.0,0.66718772]
[1728551728728,0.008,60831.0,60830.0,0.67118772]
[1728551729176,0.008,60831.0,60830.0,0.66718772]
[1728551729462,0.009,60831.0,60830.0,0.67118772]
[1728551729728,0.001,60831.0,60830.0,0.67118772]
[1728551729987,0.002,60831.0,60830.0,0.67618772]
[1728551730486,0.002,60831.0,60830.0,0.67118772]
[1728551730743,0.002,60831.0,60830.0,0.67618772]
[1728551731472,0.002,60831.0,60830.0,0.51035008]
[1728551733624,0.002,60831.0,60830.0,0.67618772]
[1728551736313,0.002,60831.0,60830.0,0.67818772]
[1728551736580,0.001634,60835.0,60834.0,0.01]
[1728551736858,0.001634,60838.0,60837.0,0.8457619]
[1728551737097,0.001634,60838.0,60837.0,1.00659954]
[1728551737587,0.001634,60838.0,60837.0,1.01854227]
[1728551738829,0.002634,60838.0,60837.0,1.07176488]
[1728551739069,0.003634,60838.0,60837.0,1.08176488]
[1728551739556,0.001634,60848.0,60847.0,0.65794045]
[1728551739812,0.001634,60848.0,60847.0,0.81877809]
[1728551740326,0.001634,60848.0,60847.0,0.82872082]
[1728551741101,0.001634,60848.0,60847.0,0.83072082]
[1728551741337,0.001634,60848.0,60847.0,0.83272082]
[1728551741791,0.001634,60848.0,60847.0,0.83072082]
[1728551742045,0.001634,60848.0,60847.0,0.82872082]
[1728551742298,0.002634,60848.0,60847.0,0.83572082]
[1728551742552,0.003634,60848.0,60847.0,0.84672082]
[1728551742806,0.002634,60848.0,60847.0,0.83772082]
[1728551743239,0.002634,60848.0,60847.0,0.83572082]
[1728551743727,0.001634,60848.0,60847.0,0.82872082]
[1728551743971,0.001634,60848.0,60847.0,0.84272082]
[1728551744482,0.002634,60848.0,60847.0,0.85672082]
[1728551745212,0.002634,60848.0,60847.0,0.85872082]
[1728551746829,0.002634,60848.0,60847.0,0.87777701]
[1728551749426,0.001636,60850.0,60849.0,0.299341]
[1728551749680,0.001636,60850.0,60849.0,0.64565472]
[1728551750706,0.001636,60850.0,60849.0,0.65765472]
[1728551750974,0.24643288,60858.0,60857.0,0.8454079]
[1728551751243,0.24643288,60858.0,60857.0,1.00624554]
[1728551751490,0.001634,60863.0,60862.0,0.299306]